Workbook

Sheet Items
A1: TEMPLATE | K1: =Job -> TEMPLATE
A3: GC's | B3: Qty | C3: Unit | D3: Material | E3: Labor | F3: Dirt | G3: Sub | H3: Trucking | I3: Unit Price | J3: Total | K3: GC's
A4: Super | C4: Mon | E4: 3500 | I4: =D4*(1+tax)+E4*(1+labor)+G4*(1+sub)+H4*(1+fuel)+F4*(1+tax) -> 3500 | J4: =B4*I4 -> 0 | K4: Super | L4: =B4*(D4*(1+tax)) -> 0 | M4: =B4*(E4*(1+labor)) -> 0 | N4: =(B4*F4)*(1+tax) -> 0 | O4: =B4*G4*(1+sub) -> 0 | P4: =B4*(H4*(1+fuel)) -> 0 | Q4: =J4*(profit) -> 0 | R4: 350 | S4: =M4/R4 -> 0 | T4: 200 | U4: Cost per ton | V4: =Rates!E6 -> 0
A5: Moves | C5: Hrs | E5: 75 | I5: 75 | J5: 0 | K5: Moves | L5: 0 | M5: 0 | N5: 0 | O5: 0 | P5: 0 | Q5: 0 | R5: 350 | S5: 0 | U5: Truck Time | V5: =Rates!E7 -> 1
A6: Water | C6: Mon | D6: 500 | E6: 500 | I6: 1034.25 | J6: 0 | K6: Water | L6: 0 | M6: 0 | N6: 0 | O6: 0 | P6: 0 | Q6: 0 | R6: 350 | S6: 0 | U6: Trucking costs per hr | V6: =Rates!E8 -> 80
A7: Trailer | C7: Mon | D7: 200 | E7: 200 | I7: 413.7 | J7: 0 | K7: Trailer | L7: 0 | M7: 0 | N7: 0 | O7: 0 | P7: 0 | Q7: 0 | R7: 350 | S7: 0
A8: Office | C8: Mon | E8: 500 | I8: 500 | J8: 0 | K8: Office | L8: 0 | M8: 0 | N8: 0 | O8: 0 | P8: 0 | Q8: 0 | R8: 350 | S8: 0
I9: =D9*(1+tax)+E9*(1+labor)+G9*(1+sub)+H9*(1+fuel)+F9*(1+tax) -> 0 | J9: =B9*I9 -> 0 | L9: =B9*(D9 *(1+tax)) -> 0 | M9: =B9*(E9*(1+labor)) -> 0 | N9: =(B9*F9)*(1+tax) -> 0 | O9: =B9*G9*(1+sub) -> 0 | P9: =B9*(H9*(1+fuel)) -> 0 | Q9: =J9*(profit) -> 0 | S9: =M9/R9 -> 
A11: Total | J11: =SUM(J4:J10) -> 0 | K11: Total | L11: =SUM(L4:L10) -> 0 | M11: =SUM(M4:M10) -> 0 | N11: =SUM(N4:N10) -> 0 | O11: =SUM(O4:O10) -> 0 | P11: =SUM(P4:P10) -> 0 | Q11: =SUM(Q4:Q10) -> 0 | S11: =SUM(S4:S10) -> 
A13: Site Work | B13: Qty | C13: Unit | D13: Material | E13: Labor | F13: Dirt | G13: Sub | H13: Trucking | I13: Unit Price | J13: Total | K13: Site Work
A14: Site Cut | C14: CY | D14: 0 | E14: 3 | F14: 0 | G14: 0 | H14: 0 | I14: =D14*(1+tax)+E14*(1+labor)+G14*(1+sub)+H14*(1+fuel)+F14*(1+tax) -> 3 | J14: =B14*I14 -> 0 | K14: Site Cut | L14: =B14*(D14*(1+tax)) -> 0 | M14: =B14*(E14*(1+labor)) -> 0 | N14: =(B14*F14)*(1+tax) -> 0 | O14: =B14*G14*(1+sub) -> 0 | P14: =B14*(H14*(1+fuel)) -> 0 | Q14: =J14*(profit) -> 0 | R14: 350 | S14: =M14/R14 -> 0 | T14: 200
A15: Clear & Grub & Export Topsoil | C15: CY | D15: 0 | E15: 1.5 | F15: 0 | G15: 0 | H15: 2 | I15: 3.5 | J15: 0 | K15: Clear & Grub & Export Topsoil | L15: 0 | M15: 0 | N15: 0 | O15: 0 | P15: 0 | Q15: 0 | R15: 350 | S15: 0
A16: Street Sweeping/Dust Control | C16: Days | D16: 0 | E16: 45 | F16: 0 | G16: 0 | H16: 0 | I16: 45 | J16: 0 | K16: Street Sweeping/Dust Control | L16: 0 | M16: 0 | N16: 0 | O16: 0 | P16: 0 | Q16: 0 | R16: 350 | S16: 0
A18: Total | J18: =SUM(J14:J17) -> 0 | K18: Total | L18: =SUM(L14:L17) -> 0 | M18: =SUM(M14:M17) -> 0 | N18: =SUM(N14:N17) -> 0 | O18: =SUM(O14:O17) -> 0 | P18: =SUM(P14:P17) -> 0 | Q18: =SUM(Q14:Q17) -> 0 | S18: =SUM(S14:S17) -> 0
A20: Building Excavation | B20: Qty | C20: Unit | D20: Material | E20: Labor | F20: Dirt | G20: Sub | H20: Trucking | I20: Unit Price | J20: Total | K20: Building Excavation
A21: 2' Footings | C21: LF | D21: 0 | E21: 12 | F21: 0 | G21: 0 | H21: 0 | I21: =D21*(1+tax)+E21*(1+labor)+G21*(1+sub)+H21*(1+fuel)+F21*(1+tax) -> 12 | J21: =B21*I21 -> 0 | K21: 2' Footings | L21: =B21*(D21*(1+tax)) -> 0 | M21: =B21*(E21*(1+labor)) -> 0 | N21: =(B21*F21)*(1+tax) -> 0 | O21: =B21*G21*(1+sub) -> 0 | P21: =B21*(H21*(1+fuel)) -> 0 | Q21: =J21*(profit) -> 0 | R21: 350 | S21: =M21/R21 -> 0
A22: Large Spots | C22: Ea | D22: 0 | E22: 500 | F22: 0 | G22: 0 | H22: 0 | I22: 500 | J22: 0 | K22: Large Spots | L22: 0 | M22: 0 | N22: 0 | O22: 0 | P22: 0 | Q22: 0 | R22: 350 | S22: 0
A23: Cut & Export | C23: CY | D23: 0 | E23: 3 | F23: 0 | G23: 0 | H23: 4 | I23: 7 | J23: 0 | K23: Cut & Export | L23: 0 | M23: 0 | N23: 0 | O23: 0 | P23: 0 | Q23: 0 | R23: 350 | S23: 0
A24: Import 12" overex | C24: Tons | D24: 0 | E24: 3.5 | F24: 4.45 | G24: 0 | H24: 3 | I24: =D24*(1+tax)+E24*(1+labor)+G24*(1+sub)+H24*(1+fuel)+F24*(1+tax) -> 11.254825 | J24: =B24*I24 -> 0 | K24: Import 12" overex | L24: =B24*(D24*(1+tax)) -> 0 | M24: =B24*(E24*(1+labor)) -> 0 | N24: =(B24*F24)*(1+tax) -> 0 | O24: =B24*G24*(1+sub) -> 0 | P24: =B24*(H24*(1+fuel)) -> 0 | Q24: =J24*(profit) -> 0 | R24: 350 | S24: =M24/R24 -> 0
A25: poop
A26: Slabs | C26: SF | D26: 0 | E26: 0.3 | F26: 0 | G26: 0 | H26: 0 | I26: =D26*(1+tax)+E26*(1+labor)+G26*(1+sub)+H26*(1+fuel)+F26*(1+tax) -> 0.3 | J26: =B26*I26 -> 0 | K26: Slabs | L26: =B26*(D26*(1+tax)) -> 0 | M26: =B26*(E26*(1+labor)) -> 0 | N26: =(B26*F26)*(1+tax) -> 0 | O26: =B26*G26*(1+sub) -> 0 | P26: =B26*(H26*(1+fuel)) -> 0 | Q26: =J26*(profit) -> 0 | R26: 350 | S26: =M26/R26 -> 0 | U26: Trucking costs per hr | V26: =Rates!H5 -> 80
A27: 4" of gravel fill under concrete | C27: Tons | D27: 0 | E27: 1 | F27: 8.25 | G27: 0 | H27: 4 | I27: 13.815125 | J27: 0 | K27: 4" of gravel fill under concrete | L27: 0 | M27: 0 | N27: 0 | O27: 0 | P27: 0 | Q27: 0 | R27: 350 | S27: 0
A29: Total | J29: =SUM(J21:J28) -> 0 | K29: Total | L29: =SUM(L21:L28) -> 0 | M29: 0 | N29: 0 | O29: 0 | P29: 0 | Q29: 0 | S29: =SUM(S21:S28) -> 0
A31: Fine Grading | B31: Qty | C31: Unit | D31: Material | E31: Labor | F31: Dirt | G31: Sub | H31: Trucking | I31: Unit Price | J31: Total | K31: Fine Grading
A32: Grade for Asphalt | C32: SF | D32: 0 | E32: 0.07 | F32: 0 | G32: 0 | H32: 0 | I32: =D32*(1+tax)+E32*(1+labor)+G32*(1+sub)+H32*(1+fuel)+F32*(1+tax) -> 0.07 | J32: =B32*I32 -> 0 | K32: Grade for Asphalt | L32: =B32*(D32*(1+tax)) -> 0 | M32: =B32*(E32*(1+labor)) -> 0 | N32: =(B32*F32)*(1+tax) -> 0 | O32: =B32*G32*(1+sub) -> 0 | P32: =B32*(H32*(1+fuel)) -> 0 | Q32: =J32*(profit) -> 0 | R32: 350 | S32: =M32/R32 -> 0
A33: Grade for Landscaping | C33: SF | D33: 0 | E33: 0.1 | F33: 0 | G33: 0 | H33: 0 | I33: 0.1 | J33: 0 | K33: Grade for Landscaping | L33: =B33*(D33*(1+tax)) -> 0 | M33: =B33*(E33*(1+labor)) -> 0 | N33: =(B33*F33)*(1+tax) -> 0 | O33: =B33*G33*(1+sub) -> 0 | P33: =B33*(H33*(1+fuel)) -> 0 | Q33: =J33*(profit) -> 0 | R33: 350 | S33: =M33/R33 -> 0
A34: Scarify & Recompact | C34: SF | D34: 0 | E34: 0.05 | F34: 0 | G34: 0 | H34: 0 | I34: 0.05 | J34: 0 | K34: Scarify & Recompact | L34: =B34*(D34*(1+tax)) -> 0 | M34: =B34*(E34*(1+labor)) -> 0 | N34: =(B34*F34)*(1+tax) -> 0 | O34: =B34*G34*(1+sub) -> 0 | P34: =B34*(H34*(1+fuel)) -> 0 | Q34: =J34*(profit) -> 0 | R34: 350 | S34: =M34/R34 -> 0
A35: Prep for Curb & Gutter | C35: LF | D35: 0 | E35: 4 | F35: 0 | G35: 0 | H35: 0 | I35: 4 | J35: 0 | K35: Prep for Curb & Gutter | L35: =B35*(D35*(1+tax)) -> 0 | M35: =B35*(E35*(1+labor)) -> 0 | N35: =(B35*F35)*(1+tax) -> 0 | O35: =B35*G35*(1+sub) -> 0 | P35: =B35*(H35*(1+fuel)) -> 0 | Q35: =J35*(profit) -> 0 | R35: 350 | S35: =M35/R35 -> 0
A36: Import base | C36: Tons | D36: 0 | E36: 0 | F36: 5.45 | G36: 0 | H36: 4 | I36: 9.823325 | J36: 0 | K36: Import base
A37: Prep for 4' Walk | C37: LF | D37: 0 | E37: 3 | F37: 0 | G37: 0 | H37: 0 | I37: 3 | J37: 0 | K37: Prep for 4' Walk | L37: =B37*(D37*(1+tax)) -> 0 | M37: =B37*(E37*(1+labor)) -> 0 | N37: =(B37*F37)*(1+tax) -> 0 | O37: =B37*G37*(1+sub) -> 0 | P37: =B37*(H37*(1+fuel)) -> 0 | Q37: =J37*(profit) -> 0 | R37: 350 | S37: =M37/R37 -> 0
A38: Import base | C38: Tons | D38: 0 | E38: 0 | F38: 5.45 | G38: 0 | H38: 4 | I38: 9.823325 | J38: 0 | K38: Import base
A39: Prep for Concrete | C39: SF | D39: 0 | E39: 0.3 | F39: 0 | G39: 0 | H39: 0 | I39: 0.3 | J39: 0 | K39: Prep for Concrete | L39: =B39*(D39*(1+tax)) -> 0 | M39: =B39*(E39*(1+labor)) -> 0 | N39: =(B39*F39)*(1+tax) -> 0 | O39: =B39*G39*(1+sub) -> 0 | P39: =B39*(H39*(1+fuel)) -> 0 | Q39: =J39*(profit) -> 0 | R39: 350 | S39: =M39/R39 -> 0
A40: Import base | C40: Tons | D40: 0 | E40: 0 | F40: 5.45 | G40: 0 | H40: 4 | I40: 9.823325 | J40: 0 | K40: Import base
A41: Prep for Apron | C41: LF | D41: 0 | E41: 2 | F41: 0 | G41: 0 | H41: 0 | I41: 2 | J41: 0 | K41: Prep for Apron | L41: =B41*(D41*(1+tax)) -> 0 | M41: =B41*(E41*(1+labor)) -> 0 | N41: =(B41*F41)*(1+tax) -> 0 | O41: =B41*G41*(1+sub) -> 0 | P41: =B41*(H41*(1+fuel)) -> 0 | Q41: =J41*(profit) -> 0 | R41: 350 | S41: =M41/R41 -> 0
A42: Import base | C42: Tons | D42: 0 | E42: 0 | F42: 5.45 | G42: 0 | H42: 4 | I42: 9.823325 | J42: 0 | K42: Import base
A43: Prep for entrance | C43: SF | D43: 0 | E43: 0.5 | F43: 0 | G43: 0 | H43: 0 | I43: 0.5 | J43: 0 | K43: Prep for entrance | L43: =B43*(D43*(1+tax)) -> 0 | M43: =B43*(E43*(1+labor)) -> 0 | N43: =(B43*F43)*(1+tax) -> 0 | O43: =B43*G43*(1+sub) -> 0 | P43: =B43*(H43*(1+fuel)) -> 0 | Q43: =J43*(profit) -> 0 | R43: 350 | S43: =M43/R43 -> 0
A44: Import base | C44: Tons | D44: 0 | F44: 5.45 | G44: 0 | H44: 4 | I44: =D44*(1+tax)+E44*(1+labor)+G44*(1+sub)+H44*(1+fuel)+F44*(1+tax) -> 9.823325 | J44: =B44*I44 -> 0 | K44: Import base
A45: Dumpster Pad | C45: Ea | D45: 0 | E45: 600 | F45: 50 | G45: 0 | H45: 50 | I45: =D45*(1+tax)+E45*(1+labor)+G45*(1+sub)+H45*(1+fuel)+F45*(1+tax) -> 703.425 | J45: =B45*I45 -> 0 | K45: Dumpster Pad
A46: Repair Rockwall | C46: hrs | D46: 0 | E46: 90 | F46: 0 | G46: 0 | H46: 0 | I46: =D46*(1+tax)+E46*(1+labor)+G46*(1+sub)+H46*(1+fuel)+F46*(1+tax) -> 90 | J46: =B46*I46 -> 0 | K46: Repair Rockwall
A47: Transformer Pads | C47: Ea | D47: 0 | E47: 100 | F47: 50 | G47: 0 | H47: 50 | I47: =D47*(1+tax)+E47*(1+labor)+G47*(1+sub)+H47*(1+fuel)+F47*(1+tax) -> 203.425 | J47: =B47*I47 -> 0 | K47: Transformer Pads
A49: Total | C49: =COUNT(sitef:sitel) -> 0 | J49: =SUM(J32:J48) -> 0 | K49: Total | L49: =SUM(L32:L48) -> 0 | M49: 0 | N49: 0 | O49: 0 | P49: 0 | Q49: 0 | S49: =SUM(S32:S48) -> 0
A51: Sewer | B51: Qty | C51: Unit | D51: Material | E51: Labor | F51: Dirt | G51: Sub | H51: Trucking | I51: Unit Price | J51: Total | K51: Sewer
A52: 4" PVC SDR 35 | C52: LF | D52: 1 | E52: 10 | F52: 0 | G52: 0 | H52: 0 | I52: =D52*(1+tax)+E52*(1+labor)+G52*(1+sub)+H52*(1+fuel)+F52*(1+tax) -> 11.0685 | J52: =B52*I52 -> 0 | K52: 4" PVC SDR 35 | L52: =B52*(D52*(1+tax)) -> 0 | M52: =B52*(E52*(1+labor)) -> 0 | N52: =(B52*F52)*(1+tax) -> 0 | O52: =B52*G52*(1+sub) -> 0 | P52: =B52*(H52*(1+fuel)) -> 0 | Q52: =J52*(profit) -> 0 | R52: 350 | S52: =M52/R52 -> 0 | T52: 0
A53: Trench Import | C53: Tons | D53: 0 | E53: 0 | F53: 4 | G53: 0 | H53: 3 | I53: 7.274 | J53: 0 | K53: Trench Import | L53: 0 | M53: 0 | N53: 0 | O53: 0 | P53: 0 | Q53: 0 | R53: 361 | S53: 0
A54: Bedding | C54: Tons | D54: 0 | E54: 0 | F54: 8 | G54: 0 | H54: 3 | I54: 11.548 | J54: 0 | K54: Bedding | L54: 0 | M54: 0 | N54: 0 | O54: 0 | P54: 0 | Q54: 0 | R54: 361 | S54: 0
A55: Export (Reuse onsite) | C55: Cy | D55: 0 | E55: 0.5 | F55: 0 | G55: 0 | H55: 3 | I55: 3.5 | J55: 0 | K55: Export (Reuse onsite) | L55: 0 | M55: 0 | N55: 0 | O55: 0 | P55: 0 | Q55: 0 | R55: 362 | S55: 0
A56: Wire, tape, etc | C56: LF | D56: 0.2 | E56: 0.2 | F56: 0 | G56: 0 | H56: 0 | I56: 0.4137 | J56: 0 | K56: Wire, tape, etc | L56: 0 | M56: 0 | N56: 0 | O56: 0 | P56: 0 | Q56: 0 | R56: 354 | S56: 0
A57: 8x4 Nose-on w/cap | C57: Ea | D57: 75 | E57: 300 | F57: 0 | G57: 0 | H57: 0 | I57: 380.1375 | J57: 0 | K57: 8x4 Nose-on w/cap | L57: 0 | M57: 0 | N57: 0 | O57: 0 | P57: 0 | Q57: 0 | R57: 359 | S57: 0
A58: 4" CO | C58: Ea | D58: 150 | E58: 50 | F58: 0 | G58: 0 | H58: 0 | I58: 210.275 | J58: 0 | K58: 4" CO | L58: 0 | M58: 0 | N58: 0 | O58: 0 | P58: 0 | Q58: 0 | R58: 359 | S58: 0
A59: Collars | C59: Ea | D59: 40 | E59: 40 | F59: 0 | G59: 0 | H59: 0 | I59: =D59*(1+tax)+E59*(1+labor)+G59*(1+sub)+H59*(1+fuel)+F59*(1+tax) -> 82.74 | J59: =B59*I59 -> 0 | K59: Collars | L59: =B59*(D59*(1+tax)) -> 0 | M59: =B59*(E59*(1+labor)) -> 0 | N59: =(B59*F59)*(1+tax) -> 0 | O59: =B59*G59*(1+sub) -> 0 | P59: =B59*(H59*(1+fuel)) -> 0 | Q59: =J59*(profit) -> 0 | R59: 359 | S59: =M59/R59 -> 0
A60: Bends & fittings | C60: Ea | D60: 25 | E60: 25 | F60: 0 | G60: 0 | H60: 0 | I60: 51.7125 | J60: 0 | K60: Bends & fittings | L60: =B60*(D60*(1+tax)) -> 0 | M60: =B60*(E60*(1+labor)) -> 0 | N60: =(B60*F60)*(1+tax) -> 0 | O60: =B60*G60*(1+sub) -> 0 | P60: =B60*(H60*(1+fuel)) -> 0 | Q60: =J60*(profit) -> 0 | R60: 359 | S60: =M60/R60 -> 0
A61: Tie-in to existing | C61: LS | D61: 0 | E61: 200 | F61: 0 | G61: 0 | H61: 0 | I61: 200 | J61: 0 | K61: Tie-in to existing | L61: =B61*(D61*(1+tax)) -> 0 | M61: =B61*(E61*(1+labor)) -> 0 | N61: =(B61*F61)*(1+tax) -> 0 | O61: =B61*G61*(1+sub) -> 0 | P61: =B61*(H61*(1+fuel)) -> 0 | Q61: =J61*(profit) -> 0 | R61: 359 | S61: =M61/R61 -> 0
A62: Trench Box | C62: LS | D62: 0 | E62: 200 | F62: 0 | G62: 0 | H62: 0 | I62: 200 | J62: 0 | K62: Trench Box
A63: Testing | C63: LS | D63: 0 | E63: 200 | F63: 0 | G63: 0 | H63: 0 | I63: 200 | J63: 0 | K63: Testing | L63: =B63*(D63*(1+tax)) -> 0 | M63: =B63*(E63*(1+labor)) -> 0 | N63: =(B63*F63)*(1+tax) -> 0 | O63: =B63*G63*(1+sub) -> 0 | P63: =B63*(H63*(1+fuel)) -> 0 | Q63: =J63*(profit) -> 0 | R63: 360 | S63: =M63/R63 -> 0
A64: Sawcutting | C64: LS | D64: 0 | E64: 0 | F64: 0 | G64: 200 | H64: 0 | I64: 202 | J64: 0 | K64: Sawcutting | L64: 0 | M64: 0 | N64: 0 | O64: 0 | P64: 0 | Q64: 0 | R64: 379 | S64: 0
A65: Demo Asphalt | C65: SF | D65: 0.25 | E65: 0 | F65: 0 | G65: 0 | H65: 0 | I65: 0.267125 | J65: 0 | K65: Demo Asphalt | L65: 0 | M65: 0 | N65: 0 | O65: 0 | P65: 0 | Q65: 0 | R65: 379 | S65: 0
A66: Haul off | C66: SF | D66: 0 | E66: 0 | F66: 4 | G66: 0 | H66: 4 | I66: 8.274 | J66: 0 | K66: Haul off | L66: 0 | M66: 0 | N66: 0 | O66: 0 | P66: 0 | Q66: 0 | R66: 379 | S66: 0
A67: Import Roadbase | C67: Tons | D67: 4 | E67: 0 | F67: 5.45 | G67: 0 | H67: 3 | I67: 13.097325 | J67: 0 | K67: Import Roadbase | L67: 0 | M67: 0 | N67: 0 | O67: 0 | P67: 0 | Q67: 0 | R67: 379 | S67: 0
A68: Scratch | C68: Sf | D68: 0.5 | E68: 0 | F68: 0 | G68: 0 | H68: 0 | I68: 0.53425 | J68: 0 | K68: Scratch | L68: 0 | M68: 0 | N68: 0 | O68: 0 | P68: 0 | Q68: 0 | R68: 379 | S68: 0
I69: =D69*(1+tax)+E69*(1+labor)+G69*(1+sub)+H69*(1+fuel)+F69*(1+tax) -> 0 | J69: =B69*I69 -> 0 | L69: =B69*(D69 *(1+tax)) -> 0 | M69: =B69*(E69*(1+labor)) -> 0 | N69: =(B69*F69)*(1+tax) -> 0 | O69: =B69*G69*(1+sub) -> 0 | P69: =B69*(H69*(1+fuel)) -> 0 | Q69: =J69*(profit) -> 0 | S69: =M69/R69 -> 
A71: Total | J71: =SUM(J52:J70) -> 0 | K71: Total | L71: =SUM(L52:L70) -> 0 | M71: 0 | N71: 0 | O71: 0 | P71: 0 | Q71: 0 | S71: =SUM(S52:S70) -> 
A73: Water | B73: Qty | C73: Unit | D73: Material | E73: Labor | F73: Dirt | G73: Sub | H73: Trucking | I73: Unit Price | J73: Total | K73: Water
A74: 8" C900 | C74: LF | D74: 2 | E74: 9 | F74: 0 | G74: 0 | H74: 0 | I74: =D74*(1+tax)+E74*(1+labor)+G74*(1+sub)+H74*(1+fuel)+F74*(1+tax) -> 11.137 | J74: =B74*I74 -> 0 | K74: 8" C900 | L74: =B74*(D74*(1+tax)) -> 0 | M74: =B74*(E74*(1+labor)) -> 0 | N74: =(B74*F74)*(1+tax) -> 0 | O74: =B74*G74*(1+sub) -> 0 | P74: =B74*(H74*(1+fuel)) -> 0 | Q74: =J74*(profit) -> 0 | R74: 350 | S74: =M74/R74 -> 0
A75: Bedding | C75: Tons | D75: 0 | E75: 0 | F75: 9 | G75: 0 | H75: 4 | I75: 13.6165 | J75: 0 | K75: Bedding | L75: 0 | M75: 0 | N75: 0 | O75: 0 | P75: 0 | Q75: 0 | R75: 353 | S75: 0
A76: Import trenches | C76: Tons | D76: 0 | E76: 0 | F76: 2.25 | G76: 0 | H76: 4 | I76: 6.404125 | J76: 0 | K76: Import trenches | L76: 0 | M76: 0 | N76: 0 | O76: 0 | P76: 0 | Q76: 0 | R76: 382 | S76: 0
A77: Export | C77: Cy | D77: 0 | E77: 0.25 | F77: 0 | G77: 0 | H77: 3 | I77: 3.25 | J77: 0 | K77: Export | L77: 0 | M77: 0 | N77: 0 | O77: 0 | P77: 0 | Q77: 0 | R77: 382 | S77: 0
A78: Wire, tape, etc | C78: LF | D78: 0.2 | E78: 0.2 | F78: 0 | G78: 0 | H78: 0 | I78: 0.4137 | J78: 0 | K78: Wire, tape, etc | L78: 0 | M78: 0 | N78: 0 | O78: 0 | P78: 0 | Q78: 0 | R78: 354 | S78: 0
A79: 8" DI | C79: LF | D79: 15 | E79: 9 | F79: 0 | G79: 0 | H79: 0 | I79: 25.0275 | J79: 0 | K79: 8" DI | L79: 0 | M79: 0 | N79: 0 | O79: 0 | P79: 0 | Q79: 0 | R79: 350 | S79: 0
A80: Bedding | C80: Tons | D80: 0 | E80: 0 | F80: 9 | G80: 0 | H80: 4 | I80: 13.6165 | J80: 0 | K80: Bedding | L80: 0 | M80: 0 | N80: 0 | O80: 0 | P80: 0 | Q80: 0 | R80: 353 | S80: 0
A81: Import trenches | C81: Tons | D81: 0 | E81: 0 | F81: 2.25 | G81: 0 | H81: 4 | I81: 6.404125 | J81: 0 | K81: Import trenches | L81: 0 | M81: 0 | N81: 0 | O81: 0 | P81: 0 | Q81: 0 | R81: 382 | S81: 0
A82: Export | C82: Cy | D82: 0 | E82: 0.25 | F82: 0 | G82: 0 | H82: 3 | I82: 3.25 | J82: 0 | K82: Export | L82: 0 | M82: 0 | N82: 0 | O82: 0 | P82: 0 | Q82: 0 | R82: 382 | S82: 0
A83: Wire, tape, etc | C83: LF | D83: 0.2 | E83: 0.2 | F83: 0 | G83: 0 | H83: 0 | I83: 0.4137 | J83: 0 | K83: Wire, tape, etc | L83: 0 | M83: 0 | N83: 0 | O83: 0 | P83: 0 | Q83: 0 | R83: 354 | S83: 0
A84: 4" MJxFLG GV | C84: Ea | D84: 325 | E84: 50 | F84: 0 | G84: 0 | H84: 0 | I84: =D84*(1+tax)+E84*(1+labor)+G84*(1+sub)+H84*(1+fuel)+F84*(1+tax) -> 397.2625 | J84: =B84*I84 -> 0 | K84: 4" MJxFLG GV | L84: =B84*(D84*(1+tax)) -> 0 | M84: =B84*(E84*(1+labor)) -> 0 | N84: =(B84*F84)*(1+tax) -> 0 | O84: =B84*G84*(1+sub) -> 0 | P84: =B84*(H84*(1+fuel)) -> 0 | Q84: =J84*(profit) -> 0 | R84: 358 | S84: =M84/R84 -> 0
A85: 4" Megalug | C85: Ea | D85: 35 | E85: 5 | F85: 0 | G85: 0 | H85: 0 | I85: 42.3975 | J85: 0 | K85: 4" Megalug | L85: 0 | M85: 0 | N85: 0 | O85: 0 | P85: 0 | Q85: 0 | R85: 356 | S85: 0
A86: Misc | C86: LS | D86: 800 | E86: 200 | F86: 0 | G86: 0 | H86: 0 | I86: 1054.8 | J86: 0 | K86: Misc | L86: 0 | M86: 0 | N86: 0 | O86: 0 | P86: 0 | Q86: 0 | R86: 356 | S86: 0
A87: 8" Temp blowoff/cap | C87: Ea | D87: 300 | E87: 100 | F87: 0 | G87: 0 | H87: 0 | I87: 420.55 | J87: 0 | K87: 8" Temp blowoff/cap | L87: 0 | M87: 0 | N87: 0 | O87: 0 | P87: 0 | Q87: 0 | R87: 358 | S87: 0
A88: 8" Loop | C88: Ea | D88: =800 -> 800 | E88: 200 | F88: 0 | G88: 0 | H88: 0 | I88: 1054.8 | J88: 0 | K88: 8" Loop | L88: 0 | M88: 0 | N88: 0 | O88: 0 | P88: 0 | Q88: 0 | R88: 358 | S88: 0
A89: 4" Loop | C89: Ea | D89: 450 | E89: 200 | F89: 0 | G89: 0 | H89: 0 | I89: 680.825 | J89: 0 | K89: 4" Loop | L89: 0 | M89: 0 | N89: 0 | O89: 0 | P89: 0 | Q89: 0 | R89: 358 | S89: 0
A90: Testing | C90: LF | D90: 0.25 | E90: 0 | F90: 0 | G90: 0 | H90: 0 | I90: 0.267125 | J90: 0 | K90: Testing | L90: 0 | M90: 0 | N90: 0 | O90: 0 | P90: 0 | Q90: 0 | R90: 379 | S90: 0
A91: Sawcutting | C91: LS | D91: 0 | E91: 0 | F91: 0 | G91: 200 | H91: 0 | I91: 202 | J91: 0 | K91: Sawcutting | L91: 0 | M91: 0 | N91: 0 | O91: 0 | P91: 0 | Q91: 0 | R91: 379 | S91: 0
A92: Demo Asphalt | C92: SF | D92: 0.25 | E92: 0 | F92: 0 | G92: 0 | H92: 0 | I92: =D92*(1+tax)+E92*(1+labor)+G92*(1+sub)+H92*(1+fuel)+F92*(1+tax) -> 0.267125 | J92: =B92*I92 -> 0 | K92: Demo Asphalt | L92: =B92*(D92*(1+tax)) -> 0 | M92: =B92*(E92*(1+labor)) -> 0 | N92: =(B92*F92)*(1+tax) -> 0 | O92: =B92*G92*(1+sub) -> 0 | P92: =B92*(H92*(1+fuel)) -> 0 | Q92: =J92*(profit) -> 0 | R92: 379 | S92: =M92/R92 -> 0
A93: Haul off | C93: SF | D93: 0 | E93: 0 | F93: 4 | G93: 0 | H93: 4 | I93: 8.274 | J93: 0 | K93: Haul off | L93: 0 | M93: 0 | N93: 0 | O93: 0 | P93: 0 | Q93: 0 | R93: 379 | S93: 0
A94: Import Roadbase | C94: Tons | D94: 4 | E94: 0 | F94: 5.45 | G94: 0 | H94: 3 | I94: 13.097325 | J94: 0 | K94: Import Roadbase | L94: 0 | M94: 0 | N94: 0 | O94: 0 | P94: 0 | Q94: 0 | R94: 379 | S94: 0
A95: Scratch | C95: Sf | D95: 0.5 | E95: 0 | F95: 0 | G95: 0 | H95: 0 | I95: 0.53425 | J95: 0 | K95: Scratch | L95: 0 | M95: 0 | N95: 0 | O95: 0 | P95: 0 | Q95: 0 | R95: 379 | S95: 0
A96: Sawcutting | C96: LF | D96: 0 | E96: 0 | F96: 0 | G96: 0.25 | H96: 0 | I96: 0.2525 | J96: 0 | K96: Sawcutting | L96: 0 | M96: 0 | N96: 0 | O96: 0 | P96: 0 | Q96: 0 | R96: 379 | S96: 0
A97: Demo Asphalt | C97: SF | D97: 0.25 | E97: 0 | F97: 0 | G97: 0 | H97: 0 | I97: 0.267125 | J97: 0 | K97: Demo Asphalt | L97: 0 | M97: 0 | N97: 0 | O97: 0 | P97: 0 | Q97: 0 | R97: 379 | S97: 0
A98: Haul off | C98: SF | D98: 0 | E98: 0 | F98: 4 | G98: 0 | H98: 4 | I98: 8.274 | J98: 0 | K98: Haul off | L98: 0 | M98: 0 | N98: 0 | O98: 0 | P98: 0 | Q98: 0 | R98: 379 | S98: 0
A99: Import Roadbase | C99: Tons | D99: 4 | E99: 0 | F99: 5.45 | G99: 0 | H99: 3 | I99: 13.097325 | J99: 0 | K99: Import Roadbase | L99: 0 | M99: 0 | N99: 0 | O99: 0 | P99: 0 | Q99: 0 | R99: 379 | S99: 0
A100: Scratch | C100: Sf | D100: 0.3 | E100: 0 | F100: 0 | G100: 0 | H100: 0 | I100: 0.32055 | J100: 0 | K100: Scratch | L100: 0 | M100: 0 | N100: 0 | O100: 0 | P100: 0 | Q100: 0 | R100: 379 | S100: 0
A101: Utilities crossing | C101: Ea | D101: 0 | E101: 100 | F101: 25 | G101: 0 | H101: 25 | I101: 151.7125 | J101: 0 | K101: Utilities crossing | L101: 0 | M101: 0 | N101: 0 | O101: 0 | P101: 0 | Q101: 0 | R101: 380 | S101: 0
A102: Thrust Blocks | C102: CY | D102: 85 | E102: 5 | F102: 0 | G102: 0 | H102: 0 | I102: 95.8225 | J102: 0 | K102: Thrust Blocks | L102: 0 | M102: 0 | N102: 0 | O102: 0 | P102: 0 | Q102: 0 | R102: 383 | S102: 0
A104: Total | J104: =SUM(J74:J103) -> 0 | K104: Total | L104: =SUM(L74:L103) -> 0 | M104: 0 | N104: 0 | O104: 0 | P104: 0 | Q104: 0 | S104: =SUM(S74:S103) -> 0
A106: Storm Drain | B106: Qty | C106: Unit | D106: Material | E106: Labor | F106: Dirt | G106: Sub | H106: Trucking | I106: Unit Price | J106: Total | K106: Storm Drain
A107: 6" ADS | C107: LF | D107: 2.35 | E107: 4 | F107: 0 | G107: 0 | H107: 0 | I107: =D107*(1+tax)+E107*(1+labor)+G107*(1+sub)+H107*(1+fuel)+F107*(1+tax) -> 6.510975 | J107: =B107*I107 -> 0 | K107: 6" ADS | L107: =B107*(D107*(1+tax)) -> 0 | M107: =B107*(E107*(1+labor)) -> 0 | N107: =(B107*F107)*(1+tax) -> 0 | O107: =B107*G107*(1+sub) -> 0 | P107: =B107*(H107*(1+fuel)) -> 0 | Q107: =J107*(profit) -> 0 | R107: 350 | S107: =M107/R107 -> 0
A108: Bedding | C108: Tons | D108: 0 | E108: 0 | F108: 7.5 | G108: 0 | H108: 3.5 | I108: 11.51375 | J108: 0 | K108: Bedding | L108: 0 | M108: 0 | N108: 0 | O108: 0 | P108: 0 | Q108: 0 | R108: 353 | S108: 0
A109: Import Trenches | C109: Tons | D109: 0 | E109: 0 | F109: 2.25 | G109: 0 | H109: 4 | I109: 6.404125 | J109: 0 | K109: Import Trenches | L109: 0 | M109: 0 | N109: 0 | O109: 0 | P109: 0 | Q109: 0 | R109: 350 | S109: 0
A110: Export | C110: Cy | D110: 0 | E110: 0.25 | F110: 0 | G110: 0 | H110: 3 | I110: 3.25 | J110: 0 | K110: Export | L110: 0 | M110: 0 | N110: 0 | O110: 0 | P110: 0 | Q110: 0 | R110: 350 | S110: 0
A111: 15" ADS | C111: LF | D111: 9.75 | E111: 5 | F111: 0 | G111: 0 | H111: 0 | I111: 15.417875 | J111: 0 | K111: 15" ADS | L111: 0 | M111: 0 | N111: 0 | O111: 0 | P111: 0 | Q111: 0 | R111: 350 | S111: 0
A112: Bedding | C112: Tons | D112: 0 | E112: 0 | F112: 7.5 | G112: 0 | H112: 3.5 | I112: 11.51375 | J112: 0 | K112: Bedding | L112: 0 | M112: 0 | N112: 0 | O112: 0 | P112: 0 | Q112: 0 | R112: 353 | S112: 0
A113: Import Trenches | C113: Tons | D113: 0 | E113: 0 | F113: 2.25 | G113: 0 | H113: 4 | I113: 6.404125 | J113: 0 | K113: Import Trenches | L113: 0 | M113: 0 | N113: 0 | O113: 0 | P113: 0 | Q113: 0 | R113: 350 | S113: 0
A114: Export | C114: Cy | D114: 0 | E114: 0.25 | F114: 0 | G114: 0 | H114: 3 | I114: 3.25 | J114: 0 | K114: Export | L114: 0 | M114: 0 | N114: 0 | O114: 0 | P114: 0 | Q114: 0 | R114: 350 | S114: 0
A115: 15" RCP | C115: LF | D115: 14 | E115: 7 | F115: 0 | G115: 0 | H115: 0 | I115: 21.959 | J115: 0 | K115: 15" RCP | L115: 0 | M115: 0 | N115: 0 | O115: 0 | P115: 0 | Q115: 0 | R115: 350 | S115: 0
A116: Bedding | C116: Tons | D116: 0 | E116: 0 | F116: 3 | G116: 0 | H116: 3.5 | I116: 6.7055 | J116: 0 | K116: Bedding | L116: 0 | M116: 0 | N116: 0 | O116: 0 | P116: 0 | Q116: 0 | R116: 353 | S116: 0
A117: Import Trenches | C117: Tons | D117: 0 | E117: 0 | F117: 2.25 | G117: 0 | H117: 4 | I117: 6.404125 | J117: 0 | K117: Import Trenches | L117: 0 | M117: 0 | N117: 0 | O117: 0 | P117: 0 | Q117: 0 | R117: 350 | S117: 0
A118: Export | C118: Cy | D118: 0 | E118: 0.25 | F118: 0 | G118: 0 | H118: 3 | I118: 3.25 | J118: 0 | K118: Export | L118: 0 | M118: 0 | N118: 0 | O118: 0 | P118: 0 | Q118: 0 | R118: 350 | S118: 0
A119: 18" RCP | C119: LF | D119: 18 | E119: 8 | F119: 0 | G119: 0 | H119: 0 | I119: 27.233 | J119: 0 | K119: 18" RCP | L119: 0 | M119: 0 | N119: 0 | O119: 0 | P119: 0 | Q119: 0 | R119: 350 | S119: 0
A120: Bedding | C120: Tons | D120: 0 | E120: 0 | F120: 3 | G120: 0 | H120: 3.5 | I120: 6.7055 | J120: 0 | K120: Bedding | L120: 0 | M120: 0 | N120: 0 | O120: 0 | P120: 0 | Q120: 0 | R120: 353 | S120: 0
A121: Import Trenches | C121: Tons | D121: 0 | E121: 0 | F121: 2.25 | G121: 0 | H121: 4 | I121: 6.404125 | J121: 0 | K121: Import Trenches | L121: 0 | M121: 0 | N121: 0 | O121: 0 | P121: 0 | Q121: 0 | R121: 350 | S121: 0
A122: Export | C122: Cy | D122: 0 | E122: 0.25 | F122: 0 | G122: 0 | H122: 3 | I122: 3.25 | J122: 0 | K122: Export | L122: 0 | M122: 0 | N122: 0 | O122: 0 | P122: 0 | Q122: 0 | R122: 350 | S122: 0
A123: 6" RD Box | C123: Ea | D123: 275 | E123: 50 | I123: 343.8375 | J123: 0 | K123: 6" RD Box
A124: Collars | C124: Ea | D124: 25 | E124: 25 | I124: 51.7125 | J124: 0 | K124: Collars
A125: 12" Junction | C125: Ea | D125: 400 | E125: 50 | I125: 477.4 | J125: 0 | K125: 12" Junction
A126: 12" Junction | C126: Ea | D126: 550 | E126: 50 | I126: 637.675 | J126: 0 | K126: 12" Junction
A127: Bedding | C127: Tons | D127: 0 | E127: 2 | F127: 8 | G127: 0 | H127: 4 | I127: 14.548 | J127: 0 | K127: Bedding | L127: =B127*(D127*(1+tax)) -> 0 | M127: =B127*(E127*(1+labor)) -> 0 | N127: =(B127*F127)*(1+tax) -> 0 | O127: =B127*G127*(1+sub) -> 0 | P127: =B127*(H127*(1+fuel)) -> 0 | Q127: =J127*(profit) -> 0 | R127: 353 | S127: =M127/R127 -> 0
A128: 6" Wye | C128: Ea | D128: 40 | E128: 25 | I128: 67.74 | J128: 0 | K128: 6" Wye
A129: Oriface | C129: Ea | D129: 50 | E129: 50 | I129: 103.425 | J129: 0 | K129: Oriface
A130: Snout | C130: Ea | D130: 370 | E130: 50 | I130: 445.345 | J130: 0 | K130: Snout
A131: Snout | C131: Ea | D131: 570 | E131: 50 | I131: 659.045 | J131: 0 | K131: Snout
A132: Curb Inlet | C132: Ea | D132: 900 | E132: 250 | I132: 1211.65 | J132: 0 | K132: Curb Inlet
A133: Combo | C133: Ea | D133: 2500 | E133: 500 | I133: 3171.25 | J133: 0 | K133: Combo
A134: 3x3 Catch Basin | C134: Ea | D134: 850 | E134: 200 | I134: 1108.225 | J134: 0 | K134: 3x3 Catch Basin
A135: Double Inlet | C135: Ea | D135: 1500 | E135: 500 | I135: 2102.75 | J135: 0 | K135: Double Inlet
A136: 3x3x9 Junction | C136: Ea | D136: 1150 | E136: 400 | I136: 1628.775 | J136: 0 | K136: 3x3x9 Junction
A137: 3x3x4 Junction | C137: Ea | D137: 1000 | E137: 300 | I137: 1368.5 | J137: 0 | K137: 3x3x4 Junction
A138: Sawcutting | C138: LF | D138: 0 | E138: 0 | F138: 0 | G138: 0.25 | H138: 0 | I138: 0.2525 | J138: 0 | K138: Sawcutting | L138: =B138*(D138*(1+tax)) -> 0 | M138: =B138*(E138*(1+labor)) -> 0 | N138: =(B138*F138)*(1+tax) -> 0 | O138: =B138*G138*(1+sub) -> 0 | P138: =B138*(H138*(1+fuel)) -> 0 | Q138: =J138*(profit) -> 0 | R138: 379 | S138: =M138/R138 -> 0
A139: Demo Asphalt | C139: SF | D139: 0.25 | E139: 0 | F139: 0 | G139: 0 | H139: 0 | I139: 0.267125 | J139: 0 | K139: Demo Asphalt | L139: 0 | M139: 0 | N139: 0 | O139: 0 | P139: 0 | Q139: 0 | R139: 379 | S139: 0
A140: Haul off | C140: SF | D140: 0 | E140: 0 | F140: 4 | G140: 0 | H140: 4 | I140: 8.274 | J140: 0 | K140: Haul off | L140: 0 | M140: 0 | N140: 0 | O140: 0 | P140: 0 | Q140: 0 | R140: 379 | S140: 0
A141: Import Roadbase | C141: Tons | D141: 4 | E141: 0 | F141: 5.45 | G141: 0 | H141: 3 | I141: 13.097325 | J141: 0 | K141: Import Roadbase | L141: 0 | M141: 0 | N141: 0 | O141: 0 | P141: 0 | Q141: 0 | R141: 379 | S141: 0
A142: Scratch | C142: Sf | D142: 0.3 | E142: 0 | F142: 0 | G142: 0 | H142: 0 | I142: 0.32055 | J142: 0 | K142: Scratch | L142: 0 | M142: 0 | N142: 0 | O142: 0 | P142: 0 | Q142: 0 | R142: 379 | S142: 0
A143: Testing | C143: LF | D143: 0 | E143: 0.25 | F143: 0 | G143: 0 | H143: 0 | I143: 0.25 | J143: 0 | K143: Testing | L143: 0 | M143: 0 | N143: 0 | O143: 0 | P143: 0 | Q143: 0 | R143: 379 | S143: 0
A145: Total | J145: =SUM(J107:J144) -> 0 | K145: Total | L145: =SUM(L107:L144) -> 0 | M145: 0 | N145: 0 | O145: 0 | P145: 0 | Q145: 0 | S145: =SUM(S107:S144) -> 0
A147: Site Demolition | B147: Qty | C147: Unit | D147: Material | E147: Labor | F147: Dirt | G147: Sub | H147: Trucking | I147: Unit Price | J147: Total | K147: Site Demolition
A148: Grind asphalt | C148: SF | D148: 0 | E148: 0 | F148: 0 | G148: 0.15 | H148: 0 | I148: =D148*(1+tax)+E148*(1+labor)+G148*(1+sub)+H148*(1+fuel)+F148*(1+tax) -> 0.1515 | J148: =B148*I148 -> 0 | K148: Grind asphalt | L148: =B148*(D148*(1+tax)) -> 0 | M148: =B148*(E148*(1+labor)) -> 0 | N148: =(B148*F148)*(1+tax) -> 0 | O148: =B148*G148*(1+sub) -> 0 | P148: =B148*(H148*(1+fuel)) -> 0 | Q148: =J148*(profit) -> 0 | R148: 350 | S148: =M148/R148 -> 0 | T148: 0
A149: Reuse asphalt | C149: CY | D149: 0 | E149: 0 | F149: 0 | G149: 0 | H149: 0 | I149: 0 | J149: 0 | K149: Reuse asphalt | L149: 0 | M149: 0 | N149: 0 | O149: 0 | P149: 0 | Q149: 0 | R149: 350 | S149: 0 | T149: 0
A150: Demo concrete | C150: SF | D150: 0 | E150: 0 | F150: 0 | G150: 0.25 | H150: 0 | I150: =D150*(1+tax)+E150*(1+labor)+G150*(1+sub)+H150*(1+fuel)+F150*(1+tax) -> 0.2525 | J150: =B150*I150 -> 0 | K150: Demo concrete | L150: =B150*(D150*(1+tax)) -> 0 | M150: =B150*(E150*(1+labor)) -> 0 | N150: =(B150*F150)*(1+tax) -> 0 | O150: =B150*G150*(1+sub) -> 0 | P150: =B150*(H150*(1+fuel)) -> 0 | Q150: =J150*(profit) -> 0 | R150: 350 | S150: =M150/R150 -> 0 | T150: 0
A151: Haul off | C151: Tons | D151: 0 | E151: 0 | F151: 4 | G151: 0 | H151: 4 | I151: =D151*(1+tax)+E151*(1+labor)+G151*(1+sub)+H151*(1+fuel)+F151*(1+tax) -> 8.274 | J151: =B151*I151 -> 0 | K151: Haul off | L151: =B151*(D151*(1+tax)) -> 0 | M151: =B151*(E151*(1+labor)) -> 0 | N151: =(B151*F151)*(1+tax) -> 0 | O151: =B151*G151*(1+sub) -> 0 | P151: =B151*(H151*(1+fuel)) -> 0 | Q151: =J151*(profit) -> 0 | R151: 350 | S151: =M151/R151 -> 0 | T151: 0
A152: Saw Cut Asphalt | C152: LF | D152: 0 | E152: 0 | F152: 0 | G152: 0.5 | H152: 0 | I152: 0.505 | J152: 0 | K152: Saw Cut Asphalt | L152: 0 | M152: 0 | N152: 0 | O152: 0 | P152: 0 | Q152: 0 | R152: 350 | S152: 0
A153: Saw Cut Curbs | C153: Ea | D153: 0 | E153: 0 | F153: 0 | G153: 50 | H153: 0 | I153: 50.5 | J153: 0 | K153: Saw Cut Curbs | L153: 0 | M153: 0 | N153: 0 | O153: 0 | P153: 0 | Q153: 0 | R153: 350 | S153: 0
A154: Remove Curb & Gutter | C154: LF | D154: 0 | E154: 1 | F154: 0 | G154: 0 | H154: 0 | I154: 1 | J154: 0 | K154: Remove Curb & Gutter | L154: 0 | M154: 0 | N154: 0 | O154: 0 | P154: 0 | Q154: 0 | R154: 350 | S154: 0
A155: Hauloff curb | C155: Tons | D155: 0 | E155: 0 | F155: 4 | G155: 0 | H155: 4 | I155: =D155*(1+tax)+E155*(1+labor)+G155*(1+sub)+H155*(1+fuel)+F155*(1+tax) -> 8.274 | J155: =B155*I155 -> 0 | K155: Hauloff curb | L155: =B155*(D155*(1+tax)) -> 0 | M155: =B155*(E155*(1+labor)) -> 0 | N155: =(B155*F155)*(1+tax) -> 0 | O155: =B155*G155*(1+sub) -> 0 | P155: =B155*(H155*(1+fuel)) -> 0 | Q155: =J155*(profit) -> 0 | R155: 350 | S155: =M155/R155 -> 0 | T155: 0
A156: Demo Fence | C156: LF | D156: 0 | E156: 1 | F156: 0 | G156: 0 | H156: 0 | I156: 1 | J156: 0 | K156: Demo Fence | L156: 0 | M156: 0 | N156: 0 | O156: 0 | P156: 0 | Q156: 0 | R156: 350 | S156: 0
A157: Demo Chainlink | C157: Lf | D157: 0 | E157: 0.75 | F157: 0 | G157: 0 | H157: 0 | I157: 0.75 | J157: 0 | K157: Demo Chainlink | L157: 0 | M157: 0 | N157: 0 | O157: 0 | P157: 0 | Q157: 0 | R157: 350 | S157: 0
A158: Demo Backstop | C158: Lf | D158: 0 | E158: 1.5 | F158: 0 | G158: 0 | H158: 0 | I158: =D158*(1+tax)+E158*(1+labor)+G158*(1+sub)+H158*(1+fuel)+F158*(1+tax) -> 1.5 | J158: =B158*I158 -> 0 | K158: Demo Backstop | L158: =B158*(D158*(1+tax)) -> 0 | M158: =B158*(E158*(1+labor)) -> 0 | N158: =(B158*F158)*(1+tax) -> 0 | O158: =B158*G158*(1+sub) -> 0 | P158: =B158*(H158*(1+fuel)) -> 0 | Q158: =J158*(profit) -> 0 | R158: 350 | S158: =M158/R158 -> 0
A159: Demo Bench | C159: Ea | D159: 0 | E159: 25 | F159: 0 | G159: 0 | H159: 50 | I159: 75 | J159: 0 | K159: Demo Bench | L159: 0 | M159: 0 | N159: 0 | O159: 0 | P159: 0 | Q159: 0 | R159: 350 | S159: 0
A160: Demo Sign | C160: Ea | D160: 0 | E160: 100 | F160: 0 | G160: 0 | H160: 0 | I160: 100 | J160: 0 | K160: Demo Sign | L160: 0 | M160: 0 | N160: 0 | O160: 0 | P160: 0 | Q160: 0 | R160: 350 | S160: 0
A161: Demo Trees | C161: Ea | D161: 0 | E161: 25 | F161: 50 | G161: 0 | H161: 50 | I161: 128.425 | J161: 0 | K161: Demo Trees | L161: 0 | M161: 0 | N161: 0 | O161: 0 | P161: 0 | Q161: 0 | R161: 350 | S161: 0
A162: Demo tree | C162: Ea | D162: 0 | E162: 350 | F162: 0 | G162: 75 | H162: 0 | I162: 425.75 | J162: 0 | K162: Demo tree | L162: =B162*(D162*(1+tax)) -> 0 | M162: =B162*(E162*(1+labor)) -> 0 | N162: =(B162*F162)*(1+tax) -> 0 | O162: =B162*G162*(1+sub) -> 0 | P162: =B162*(H162*(1+fuel)) -> 0 | Q162: =J162*(profit) -> 0 | R162: 350 | S162: =M162/R162 -> 0
A163: Hauloff garbage | C163: Tons | D163: 0 | E163: 3 | F163: 8 | G163: 0 | H163: 10 | I163: 21.548 | J163: 0 | K163: Hauloff garbage | L163: =B163*(D163*(1+tax)) -> 0 | M163: =B163*(E163*(1+labor)) -> 0 | N163: =(B163*F163)*(1+tax) -> 0 | O163: =B163*G163*(1+sub) -> 0 | P163: =B163*(H163*(1+fuel)) -> 0 | Q163: =J163*(profit) -> 0 | R163: 350 | S163: =M163/R163 -> 0 | T163: 0
A165: Total | J165: =SUM(J148:J163) -> 0 | K165: Total | L165: =SUM(L148:L164) -> 0 | M165: =SUM(M148:M164) -> 0 | N165: =SUM(N148:N154) -> 0 | O165: =SUM(O148:O164) -> 0 | P165: =SUM(P148:P164) -> 0 | Q165: =SUM(Q148:Q164) -> 0 | S165: =SUM(S148:S164) -> 0
A167: Erosion Control | B167: Qty | C167: Unit | D167: Material | E167: Labor | F167: Dirt | G167: Sub | H167: Trucking | I167: Unit Price | J167: Total | K167: Erosion Control
A168: 6' Temporary Fence | C168: LF | D168: 2 | E168: 2 | F168: 0 | G168: 0 | H168: 0 | I168: =D168*(1+tax)+E168*(1+labor)+G168*(1+sub)+H168*(1+fuel)+F168*(1+tax) -> 4.137 | J168: =B168*I168 -> 0 | K168: 6' Temporary Fence | L168: =B168*(D168*(1+tax)) -> 0 | M168: =B168*(E168*(1+labor)) -> 0 | N168: =(B168*F168)*(1+tax) -> 0 | O168: =B168*G168*(1+sub) -> 0 | P168: =B168*(H168*(1+fuel)) -> 0 | Q168: =J168*(profit) -> 0 | R168: 350 | S168: =M168/R168 -> 0 | T168: 0
A169: Silt Fence (maintance) | C169: LF | D169: 0.5 | E169: 1 | F169: 0 | G169: 0 | H169: 0 | I169: 1.53425 | J169: 0 | K169: Silt Fence (maintance) | L169: 0 | M169: 0 | N169: 0 | O169: 0 | P169: 0 | Q169: 0 | R169: 350 | S169: 0 | T169: 0
A170: Materials Storage Area | C170: EA | D170: 0 | E170: 0 | F170: 0 | G170: 0 | H170: 0 | I170: 0 | J170: 0 | K170: Materials Storage Area | L170: 0 | M170: 0 | N170: 0 | O170: 0 | P170: 0 | Q170: 0 | R170: 350 | S170: 0
A171: Construction Entrance | C171: Tons | D171: 0 | E171: 2 | F171: 8 | G171: 0 | H171: 3 | I171: 13.548 | J171: 0 | K171: Construction Entrance | L171: 0 | M171: 0 | N171: 0 | O171: 0 | P171: 0 | Q171: 0 | R171: 350 | S171: 0
A172: Inlet Protection | C172: Ea | D172: 35 | E172: 25 | F172: 0 | G172: 0 | H172: 0 | I172: 62.3975 | J172: 0 | K172: Inlet Protection | L172: 0 | M172: 0 | N172: 0 | O172: 0 | P172: 0 | Q172: 0 | R172: 350 | S172: 0
A173: Maintanence | C173: Wks | D173: 0 | E173: 50 | F173: 0 | G173: 0 | H173: 0 | I173: 50 | J173: 0 | K173: Maintanence | L173: 0 | M173: 0 | N173: 0 | O173: 0 | P173: 0 | Q173: 0 | R173: 350 | S173: 0
A175: Total | J175: =SUM(J168:J173) -> 0 | K175: Total | L175: =SUM(L168:L173) -> 0 | M175: 0 | N175: 0 | O175: 0 | P175: 0 | Q175: 0 | S175: =SUM(S168:S173) -> 0
A176: 2Ne4:tot
A177: New1 | B177: Qty | C177: Unit | D177: Material | E177: Labor | F177: Dirt | G177: Sub | H177: Trucking | I177: Unit Price | J177: Total
I178: =D178*(1+tax)+E178*(1+labor)+G178*(1+sub)+H178*(1+fuel)+F178*(1+tax) -> 0 | J178: =B178*I178 -> 0 | L178: =B178*(D178 *(1+tax)) -> 0 | M178: =B178*(E178*(1+labor)) -> 0 | N178: =(B178*F178)*(1+tax) -> 0 | O178: =B178*G178*(1+sub) -> 0 | P178: =B178*(H178*(1+fuel)) -> 0 | Q178: =J178*(profit) -> 0 | R178: 350 | S178: =M178/R178 -> 0 | T178: 0
A179: 1Nephi3:7
A180: Total | J180: =SUM(J178:J179) -> 0 | K180: Total | L180: =SUM(L178:L179) -> 0 | M180: 0 | N180: 0 | O180: 0 | P180: 0 | Q180: 0 | S180: =SUM(S178:S179) -> 0
A182: New2 | B182: Qty | C182: Unit | D182: Material | E182: Labor | F182: Dirt | G182: Sub | H182: Trucking | I182: Unit Price | J182: Total
F183: 0 | G183: 0 | H183: 0 | I183: =D183*(1+tax)+E183*(1+labor)+G183*(1+sub)+H183*(1+fuel)+F183*(1+tax) -> 0 | J183: =B183*I183 -> 0 | L183: =B183*(D183*(1+tax)) -> 0 | M183: =B183*(E183*(1+labor)) -> 0 | N183: =(B183*F183)*(1+tax) -> 0 | O183: =B183*G183*(1+sub) -> 0 | P183: =B183*(H183*(1+fuel)) -> 0 | Q183: =J183*(profit) -> 0 | R183: 350 | S183: =M183/R183 -> 0 | T183: 0
A184: ALMA32
A185: Total | I185: 0 | J185: =SUM(J183:J184) -> 0 | K185: Total | L185: =SUM(L183:L184) -> 0 | M185: 0 | N185: 0 | O185: 0 | P185: 0 | Q185: 0 | S185: =SUM(S183:S184) -> 0
A186: 1Ne3:7
A187: Profit & Overhead | D187: =Rates!B6 -> 0.01 | K187: Profit & Overhead
A188: Tax Rate | D188: =Rates!B7 -> 0.0685 | K188: Tax Rate
A189: Sub Rate | D189: =Rates!B8 -> 0.01 | K189: Sub Rate
A190: Fuel Surcharge | D190: =Rates!B9 -> 0 | K190: Fuel Surcharge
A191: Labor Burden | D191: =Rates!B10 -> 0 | K191: =Job -> TEMPLATE
L192: Material | M192: Labor | N192: Dirt | O192: Sub | P192: Trucking | Q192: Profit & Overhead | R192: Total Hrs | S192: Total Days
B193: Qty
A194: GC's | J194: =J11*(1+profit) -> 0 | K194: GC's | L194: =L11 -> 0 | M194: =M11 -> 0 | N194: =N11 -> 0 | O194: =O11 -> 0 | P194: =P11 -> 0 | Q194: =Q11 -> 0 | R194: =S17 -> 0 | S194: =R194/8 -> 0
A195: Site Work | C195: =COUNT(sitef:sitel) -> 0 | J195: =J18*(1+profit) -> 0 | K195: Site Work | L195: =L18 -> 0 | M195: 0 | N195: 0 | O195: 0 | P195: 0 | Q195: 0 | R195: =S18 -> 0 | S195: 0
A196: Building Ex | C196: =COUNT(excaf:excal) -> 0 | J196: =J29*(1+profit) -> 0 | K196: Building Ex | L196: =L29 -> 0 | M196: 0 | N196: 0 | O196: 0 | P196: 0 | Q196: 0 | R196: =S29 -> 0 | S196: =R196/8 -> 0
A197: Fine Grading | C197: =COUNT(gradef:gradel) -> 0 | J197: =J49*(1+profit) -> 0 | K197: Fine Grading | L197: =L49 -> 0 | M197: 0 | N197: 0 | O197: 0 | P197: 0 | Q197: 0 | R197: =S49 -> 0 | S197: =R197/8 -> 0
A198: Sewer | C198: =COUNT(sewerf:sewerl) -> 0 | J198: =J71*(1+profit) -> 0 | K198: Sewer | L198: =L71 -> 0 | M198: 0 | N198: 0 | O198: 0 | P198: 0 | Q198: 0 | R198: =S71 -> 
A199: Water | C199: =COUNT(waterf:waterl) -> 0 | J199: =J104*(1+B187) -> 0 | K199: Water | L199: =L104 -> 0 | M199: 0 | N199: 0 | O199: 0 | P199: 0 | Q199: 0 | R199: =S104 -> 0 | S199: 0
A200: Storm Drain | C200: =COUNT(stromf:storml) -> 0 | J200: =J145*(1+profit) -> 0 | K200: Storm Drain | L200: =L145 -> 0 | M200: 0 | N200: 0 | O200: 0 | P200: 0 | Q200: 0 | R200: =S145 -> 0 | S200: 0
A201: Site Demolition | C201: =COUNT(demof:demol) -> 0 | J201: =J165*(1+profit) -> 0 | K201: Site Demolition | L201: =L165 -> 0 | M201: 0 | N201: 0 | O201: 0 | P201: 0 | Q201: 0 | R201: =S165 -> 0 | S201: 0
A202: Erosion Control | C202: =COUNT(erof:erol) -> 0 | J202: =J175*(1+profit) -> 0 | K202: Erosion Control | L202: =L175 -> 0 | M202: 0 | N202: 0 | O202: 0 | P202: 0 | Q202: 0 | R202: =S166 -> 0 | S202: 0
A203: New1 | C203: 1 | J203: =SUM(J178:J179) -> 0 | L203: =L180 -> 0 | M203: 0 | N203: 0 | O203: 0 | P203: 0 | Q203: 0 | R203: 0 | S203: 0
A204: New2 | C204: 1 | J204: =SUM(J183:J184) -> 0 | L204: =L185 -> 0 | M204: =M185 -> 0 | N204: 0 | O204: 0 | P204: 0 | Q204: 0 | R204: 0 | S204: 0
A206: Total | J206: =SUM(ftot:ltot) -> 0 | K206: Total | L206: =SUM(L194:L205) -> 0 | M206: 0 | N206: 0 | O206: 0 | P206: 0 | Q206: 0 | R206: =SUM(R195:R205) ->  | S206: =SUM(S195:S205) -> 
Q208: Project completion in Hrs | S208: =SUM(R195:R205) -> 
Q209: Project completion in Days | S209: =SUM(S195:S205) -> 

Sheet Rates
A5: Rates | D5: Engineered Fill | G5: Trucking costs per hr | H5: 80
A6: Profit & Overhead | B6: 0.01 | D6: Cost per ton | E6: 0
A7: Tax Rate | B7: 0.0685 | D7: Truck Time | E7: 1
A8: Sub Rate | B8: 0.01 | D8: Trucking costs per hr | E8: 80
A9: Fuel Surcharge | B9: 0
A10: Labor Burden | B10: 0 | D10: Engineered Fill
D11: Cost per ton | E11: 0
D12: Truck Time | E12: 1
D13: Trucking costs per hr | E13: 80

Sheet Summary
A7: Scope Summary
B8: Attn: | H8: Addenda:
B9: Project:
B10: Bid Date:
A14: Project Scope
D15: GC's | H15: Total
D16: Moves | H16: 32550
D17: Site Work | H17: Total
D18: Street Sweeping/Dust Control | H18: 1935
D19: Building Excavation | H19: Total
D20: Cut & Export | H20: 238
D21: poop
D22: Fine Grading | H22: Total
D23: Import base | H23: 333.9931
D24: Sewer | H24: Total
D25: Bedding | H25: 496.564
D26: Demo Asphalt | H26: 11.4864
H27: 0
D28: Water | H28: Total
D29: 8" DI | H29: 100.11
D30: Wire, tape, etc | H30: 17.7891
D31: Demo Asphalt | H31: 11.4864
D32: Storm Drain | H32: Total
D33: Export | H33: 9.75
D34: 15" RCP | H34: 944.237
D35: 6" RD Box | H35: 11690.475
D36: Snout | H36: 22407.53
D37: 3x3 Catch Basin | H37: 47653.675
D38: Import Roadbase | H38: 563.185
D39: Site Demolition | H39: Total
D40: Demo Fence | H40: 43
D41: Erosion Control | H41: Total
D42: Inlet Protection | H42: 2121.515

Sheet Proposal
D7: Bid Proposal
C8: Attn: | D8: 5 | G8: Addenda : | H8: 5
C9: Project: | D9: BYU
C10: Bid Date: | D10: 2015-04-13
F13: Items | H13: Total
A14: Site Work | F14: =SUM(F15:G16) -> 0 | H14: =SUM(sitetots) -> 0
F19: Items | H19: Total
A20: Site Utilities | F20: =SUM(F21:G23) -> 0 | H20: =SUM(H21:J23) -> 0
F25: Items | H25: Total
A26: Other | F26: =SUM(F27:G29) -> 0 | H26: =SUM(H27:J29) -> 0
A32: Total Proposed Bid Cost: | H32: =SUM(H14+H20+H26) -> 0
A35: Exclusions
C53: Question call Joe Shmo at 661-644-9185

Sheet Index
A4: Projects | B4: Aggenda | C4: Attn.
A5: Temple Ave | B5: 1 | C5: 1
A6: BYU | B6: 2 | C6: 2
A7: Liberty Bend | B7: 3 | C7: 3
A8: Ect.. | B8: 4 | C8: 4
B9: 5 | C9: 5
B10: 6 | C10: 6
B11: 7 | C11: 7
B12: 8 | C12: 8
B13: 9 | C13: 9
B14: 10 | C14: 10

Sheet Help
